bitfinex-derivatives/quotes_SOLF0:USTF0_20250117
["timestamp","ask_amount","ask_price","bid_price","bid_amount"]
[1737143402301,4.6027,217.11,217.07,4.6033]
[1737143402603,7.17735752,217.14,217.06,7.17735752]
[1737143403004,4.6029,217.09,217.06,11.78085752]
[1737143403208,4.6029,217.09,217.06,7.17735752]
[1737143407005,7.17735752,217.14,217.06,7.17735752]
[1737143407307,7.17735752,217.14,217.06,11.78075752]
[1737143407809,4.603,217.09,217.06,7.17735752]
[1737143408307,4.6032,217.08,217.06,7.17735752]
[1737143408699,7.17735752,217.12,217.06,7.17735752]
[1737143409105,7.17735752,217.12,217.04,7.17735752]
[1737143409304,7.17735752,217.1,217.01,4.78]
[1737143409504,7.17735752,217.08,217.01,11.95735752]
[1737143409703,1.6175,217.17,217.05,7.17735752]
[1737143409907,7.17735752,217.12,217.05,7.17735752]
[1737143410605,4.6031,217.09,217.05,7.17735752]
[1737143410909,4.6031,217.09,217.05,11.78105752]
[1737143411206,7.17735752,217.12,217.05,7.17735752]
[1737143411906,4.6031,217.09,217.05,11.78125752]
[1737143412101,7.17735752,217.12,217.05,7.17735752]
[1737143412300,7.17735752,217.1,217.03,7.17735752]
[1737143412501,4.604,217.06,217.03,7.17735752]
[1737143416611,4.6043,217.04,217.01,7.17735752]
[1737143416911,4.6043,217.04,217.0,7.17735752]
[1737143417213,4.6045,217.03,217.0,7.17735752]
[1737143417409,7.17735752,217.1,217.02,7.17735752]
[1737143417613,7.17735752,217.1,217.04,11.78155752]
[1737143417809,4.6034,217.08,217.04,7.17735752]
[1737143418812,4.6034,217.07,217.04,7.17735752]
[1737143419414,4.6031,217.08,217.04,7.17735752]
[1737143419814,4.6032,217.09,217.04,11.78125752]
[1737143421014,4.6029,217.1,217.06,7.17735752]
[1737143421917,4.6031,217.09,217.06,7.17735752]
[1737143422916,4.6028,217.11,217.06,7.17735752]
[1737143424213,4.6028,217.11,217.06,11.78085752]
[1737143426113,4.6028,217.11,217.06,7.17735752]
[1737143426324,4.6023,217.13,217.08,11.78055752]
[1737143426818,7.17735752,217.12,216.98,30.35382609]
[1737143427017,7.17735752,217.1,217.02,7.17735752]
[1737143427518,4.6036,217.07,217.02,11.78185752]
[1737143429618,4.6036,217.07,217.03,4.6042]
[1737143430118,4.6033,217.08,217.04,7.17735752]
[1737143432922,4.6033,217.08,217.03,4.6042]
[1737143433123,4.6033,217.08,216.98,30.35382609]
[1737143433124,4.6039,217.05,216.98,30.35382609]
[1737143433322,7.17735752,217.07,216.99,7.17735752]
[1737143433723,4.604,217.05,216.99,7.17735752]
[1737143435121,4.6039,217.05,217.0,4.6048]
[1737143436127,4.6039,217.05,217.01,7.17735752]
[1737143436329,7.17735752,217.07,217.01,7.17735752]
[1737143436542,7.17735752,217.04,216.97,6.39345652]
[1737143436932,7.17735752,217.04,216.98,7.17735752]
[1737143437625,4.6043,217.03,216.98,11.78265752]
[1737143438828,4.6046,217.02,216.98,7.17735752]
[1737143441135,7.17735752,217.08,217.0,7.17735752]
[1737143441347,7.17735752,217.08,217.02,7.17735752]
[1737143441634,7.17735752,217.1,217.04,7.17735752]
[1737143442331,4.6032,217.09,217.04,7.17735752]
[1737143442735,7.17735752,217.12,217.04,7.17735752]
[1737143442930,4.603,217.1,217.04,11.78125752]
[1737143443131,3.1233,217.16,217.08,7.17735752]
[1737143443434,10.30065752,217.16,217.1,7.17735752]
[1737143443835,4.6022,217.13,217.1,7.17735752]
[1737143446038,4.6022,217.13,217.08,11.78055752]
[1737143446331,7.17735752,217.14,217.08,7.17735752]
[1737143446531,7.17735752,217.11,217.04,4.604]
[1737143446830,7.17735752,217.11,217.04,7.17735752]
[1737143447831,4.603,217.09,217.04,7.17735752]
[1737143448831,4.603,217.09,217.04,11.78145752]
[1737143450937,4.603,217.09,217.06,7.17735752]
[1737143451334,4.6022,217.13,217.06,11.78085752]
[1737143451533,7.17735752,217.14,217.06,11.78085752]
[1737143452937,4.6028,217.11,217.06,11.78085752]
[1737143453235,7.17735752,217.14,217.06,11.78085752]
[1737143453836,4.6025,217.12,217.06,11.78085752]
[1737143454034,7.17735752,217.14,217.06,11.78085752]
[1737143454737,4.6027,217.11,217.06,11.78085752]
[1737143455036,7.17735752,217.12,217.06,7.17735752]
[1737143455227,7.17735752,217.12,217.05,4.6039]
[1737143456040,4.6033,217.08,217.04,11.78145752]
[1737143456239,7.17735752,217.12,217.06,7.17735752]
[1737143456645,4.603,217.1,217.06,7.17735752]
[1737143457541,7.17735752,217.14,217.06,7.17735752]
[1737143457741,4.6026,217.11,217.06,11.78085752]
[1737143458842,4.6026,217.11,217.07,4.6034]
[1737143459339,4.6026,217.11,217.08,7.17735752]
[1737143461449,4.6016,217.16,217.1,7.17735752]
[1737143461648,3.0533,217.23,217.14,7.17735752]
[1737143461944,7.17735752,217.21,217.14,7.17735752]
[1737143462146,4.6014,217.17,217.14,7.17735752]
[1737143469252,4.6016,217.16,217.14,7.17735752]
[1737143470249,4.6016,217.16,217.12,4.6022]
[1737143470250,7.17735752,217.16,217.09,16.56035752]
[1737143471054,4.602,217.14,217.09,16.56035752]
[1737143471653,7.17735752,217.16,217.09,16.56035752]
[1737143471849,4.602,217.14,217.09,16.56035752]
[1737143472655,4.6025,217.12,217.09,11.95735752]
[1737143473355,4.6022,217.13,217.09,11.95735752]
[1737143475261,4.602,217.14,217.09,16.56025752]
[1737143475851,4.602,217.14,217.11,7.17735752]
[1737143476162,4.602,217.14,217.09,11.95735752]
[1737143476351,7.17735752,217.17,217.11,7.17735752]
[1737143476557,3.0533,217.23,217.13,7.17735752]
[1737143476759,7.17735752,217.2,217.13,7.17735752]
[1737143476957,7.17735752,217.22,217.15,7.17735752]
[1737143477760,4.6015,217.17,217.15,7.17735752]
[1737143479060,4.6015,217.17,217.13,7.17735752]
[1737143480462,4.6016,217.16,217.13,7.17735752]
[1737143480658,7.17735752,217.18,217.11,7.17735752]
[1737143480959,4.6024,217.13,217.09,11.95735752]
[1737143481159,7.17735752,217.19,217.11,7.17735752]
[1737143481358,7.17735752,217.17,217.09,11.95735752]
[1737143483365,7.17735752,217.17,217.09,16.56025752]
[1737143483366,4.6022,217.14,217.09,16.56025752]
[1737143483559,7.17735752,217.17,217.09,16.56025752]
[1737143484759,4.6022,217.14,217.09,9.3829]
[1737143485065,7.17735752,217.17,217.11,7.17735752]
[1737143485565,4.6016,217.16,217.11,11.77975752]
[1737143486066,7.17735752,217.17,217.09,11.95735752]
[1737143486867,7.17735752,217.15,217.09,11.95735752]
[1737143487068,4.6028,217.11,217.06,7.17735752]
[1737143487968,7.17735752,217.13,217.06,7.17735752]
[1737143488263,4.6027,217.11,217.06,7.17735752]
[1737143489764,4.6027,217.11,217.06,11.78105752]
[1737143490169,4.6027,217.11,217.06,4.6037]
[1737143490770,4.603,217.1,217.05,11.78125752]
[1737143491271,7.17735752,217.11,217.03,11.95735752]
[1737143491470,4.6032,217.09,217.03,11.95735752]
[1737143491965,4.6032,217.09,217.04,4.604]
[1737143492164,4.6032,217.09,217.05,7.17735752]
[1737143493167,4.6035,217.08,217.05,7.17735752]
[1737143493375,7.17735752,217.11,217.05,7.17735752]
[1737143494069,4.6034,217.08,217.05,7.17735752]
[1737143494270,7.17735752,217.11,217.02,86.16]
[1737143494467,7.17735752,217.09,217.02,86.16]
[1737143494867,4.6041,217.05,217.02,86.16]
[1737143496374,4.6041,217.05,217.01,7.17735752]
[1737143497275,4.6041,217.05,217.01,11.78205752]
[1737143497969,7.17735752,217.09,217.01,11.78205752]
[1737143498171,4.6037,217.06,217.01,11.78205752]
[1737143498675,7.17735752,217.09,217.01,11.78205752]
[1737143498973,4.604,217.05,217.01,11.78205752]
[1737143499776,4.6037,217.06,217.01,11.78205752]
[1737143501979,7.17735752,217.11,217.03,7.17735752]
[1737143502373,4.6031,217.09,217.04,4.604]
[1737143504079,4.6031,217.09,217.05,4.6039]
[1737143505979,4.6032,217.09,217.05,11.78125752]
[1737143506576,4.689,217.16,217.05,7.17735752]
[1737143506787,4.6022,217.13,217.09,7.17735752]
[1737143507081,11.86635752,217.16,217.09,11.78025752]
[1737143507279,4.6024,217.12,217.07,7.17735752]
[1737143508483,4.602,217.14,217.09,7.17735752]
[1737143508982,4.602,217.14,217.09,4.6029]
[1737143509174,4.6026,217.12,217.07,7.17735752]
[1737143509376,4.6026,217.12,217.09,7.17735752]
[1737143511278,7.17735752,217.14,217.07,4.6034]
[1737143511479,4.6027,217.11,217.06,11.78105752]
[1737143511677,7.17735752,217.14,217.06,11.78105752]
[1737143511879,7.17735752,217.14,217.06,7.17735752]
[1737143513788,4.6028,217.11,217.08,7.17735752]
[1737143514290,4.6024,217.13,217.1,7.17735752]
[1737143515591,4.6024,217.13,217.08,11.78055752]
[1737143516295,4.6024,217.13,217.1,7.17735752]
[1737143516491,4.6019,217.15,217.1,11.78015752]
[1737143516688,7.17735752,217.15,217.08,7.17735752]
[1737143516995,4.6031,217.1,217.05,16.56125752]
[1737143517791,7.17735752,217.13,217.05,11.95735752]
[1737143517993,4.6031,217.09,217.05,11.95735752]
[1737143518490,4.6029,217.11,217.05,16.56125752]
[1737143518892,7.17735752,217.13,217.05,16.56125752]
[1737143520198,4.603,217.1,217.05,16.56125752]
[1737143520797,7.17735752,217.13,217.05,11.95735752]
[1737143520999,4.6031,217.09,217.05,11.95735752]
[1737143521194,4.6031,217.09,217.04,11.78145752]
[1737143521396,7.17735752,217.13,217.06,7.17735752]
[1737143521699,4.689,217.16,217.1,7.17735752]
[1737143522496,4.602,217.15,217.1,11.78005752]
[1737143522697,7.17735752,217.17,217.1,7.17735752]
[1737143522892,4.6017,217.16,217.11,4.6026]
[1737143523100,7.17735752,217.15,217.04,6.39345652]
[1737143523301,7.17735752,217.15,217.07,7.17735752]
[1737143523498,7.17735752,217.13,217.05,7.17735752]
[1737143524096,4.6029,217.1,217.05,11.78125752]
[1737143525196,4.6024,217.13,217.07,7.17735752]
[1737143525501,4.6024,217.13,217.03,4.78]
[1737143525502,7.17735752,217.13,217.03,4.78]
[1737143525698,7.17735752,217.13,217.06,7.17735752]
[1737143525898,4.6027,217.11,217.06,7.17735752]
[1737143526702,4.6027,217.11,217.06,11.78115752]
[1737143526906,7.17735752,217.13,217.06,11.78115752]
[1737143527204,7.17735752,217.11,217.05,4.6042]
[1737143527696,11.78005752,217.11,217.04,7.17735752]
[1737143528204,7.17735752,217.11,217.04,7.17735752]
[1737143528405,4.6027,217.1,217.05,4.6036]
[1737143528903,4.6029,217.1,217.06,4.6037]
[1737143530507,7.17735752,217.11,217.03,7.17735752]
[1737143531208,4.6035,217.08,217.03,11.78155752]
[1737143531503,7.17735752,217.11,217.02,4.78]
[1737143531704,7.17735752,217.11,217.04,7.17735752]
[1737143531897,4.6033,217.09,217.04,11.78145752]
[1737143532096,4.6033,217.09,217.04,7.17735752]
[1737143532300,7.17735752,217.11,217.04,7.17735752]
[1737143532497,4.603,217.1,217.05,4.6039]
[1737143534810,7.33682184,217.19,217.06,7.17735752]
[1737143535107,7.17735752,217.17,217.1,7.17735752]
[1737143535303,4.6021,217.14,217.09,4.6029]
[1737143536707,7.17735752,217.15,217.09,4.6029]
[1737143536912,4.6024,217.13,217.08,7.17735752]
[1737143537105,7.17735752,217.15,217.08,7.17735752]
[1737143537408,7.17735752,217.17,217.12,4.6024]
[1737143538413,3.0021,217.22,217.12,11.77975752]
[1737143538612,7.17735752,217.2,217.12,11.77975752]
[1737143539115,4.6014,217.17,217.12,11.77975752]
[1737143540311,4.6014,217.17,217.13,4.6022]
[1737143543912,4.6016,217.16,217.13,4.6022]
[1737143544113,4.6016,217.16,217.05,6.39345652]
[1737143544114,7.17735752,217.16,217.09,7.17735752]
[1737143544710,4.6023,217.13,217.09,11.78025752]
[1737143545110,4.6023,217.13,217.09,7.17735752]
[1737143545812,4.6025,217.12,217.09,7.17735752]
[1737143546314,4.6022,217.14,217.07,7.17735752]
[1737143546509,7.17735752,217.16,217.07,7.17735752]
[1737143547015,7.17735752,217.15,217.07,7.17735752]
[1737143547709,7.17735752,217.15,217.09,7.17735752]
[1737143547911,7.17735752,217.17,217.09,7.17735752]
[1737143548110,4.6021,217.14,217.1,4.6029]
[1737143548805,4.6017,217.16,217.11,11.77985752]
[1737143549709,7.17735752,217.18,217.11,11.77985752]
[1737143549914,4.6019,217.15,217.11,7.17735752]
[1737143551112,4.6019,217.15,217.11,11.78005752]
[1737143552614,7.17735752,217.18,217.11,7.17735752]
[1737143552818,4.6022,217.14,217.09,4.6029]
[1737143553019,4.6022,217.14,217.09,11.78025752]
[1737143553219,7.17735752,217.16,217.06,4.76]
[1737143553520,7.17735752,217.12,217.04,7.17735752]
[1737143553727,7.17735752,217.12,217.06,7.17735752]
[1737143553921,7.17735752,217.12,217.05,7.17735752]
[1737143554922,7.3378818,217.2,217.03,12.62583799]
[1737143554923,7.17735752,217.1,217.03,12.62583799]
[1737143555221,7.17735752,217.12,217.05,7.17735752]
[1737143557119,4.6027,217.11,217.06,4.6037]
[1737143561219,7.17735752,217.1,217.03,17.38583799]
[1737143562123,7.33734261,217.2,217.03,17.38583799]
[1737143562124,4.6034,217.08,217.05,7.17735752]
[1737143562324,7.17735752,217.12,217.05,7.17735752]
[1737143562817,4.6034,217.09,217.05,11.78135752]
[1737143563734,4.6034,217.09,217.05,7.17735752]
[1737143564629,4.6034,217.09,217.04,4.6042]
[1737143565023,4.6033,217.08,217.04,4.6039]
[1737143565229,7.17735752,217.1,217.04,4.6039]
[1737143565428,7.17735752,217.1,217.05,7.17735752]
[1737143566123,4.6029,217.09,217.05,7.17735752]
[1737143566430,7.17735752,217.12,217.05,11.78115752]
[1737143567030,4.6033,217.09,217.05,7.17735752]
[1737143567229,4.6033,217.09,217.03,10.20848047]
[1737143567426,4.6033,217.09,217.04,7.17735752]
[1737143568530,4.6033,217.09,217.04,11.78135752]
[1737143569730,4.6033,217.09,217.04,7.17735752]
[1737143569932,4.6033,217.09,217.05,4.6039]
[1737143571323,4.6033,217.09,217.05,11.78125752]
[1737143573025,7.33734261,217.2,217.03,10.20848047]
[1737143573026,4.6034,217.08,217.04,4.6041]
[1737143573228,7.17735752,217.13,217.05,7.17735752]
[1737143573825,7.17735752,217.13,217.05,11.78115752]
[1737143573826,4.6031,217.1,217.05,11.78115752]
[1737143574029,7.17735752,217.13,217.05,7.17735752]
[1737143574938,4.6028,217.11,217.05,11.78125752]
[1737143575131,7.17735752,217.13,217.05,7.17735752]
[1737143575528,7.17735752,217.13,217.06,4.6037]
[1737143577037,4.6031,217.09,217.06,4.6037]
[1737143578037,4.6031,217.09,217.05,11.78125752]
[1737143578234,194.0,217.18,216.99,25.57382609]
[1737143578539,7.17735752,217.03,216.99,25.57382609]
[1737143578738,7.17735752,217.01,217.0,10.54152569]
[1737143578939,7.17735752,217.01,216.99,19.18036957]
[1737143579127,7.17735752,217.01,216.99,11.87566957]
[1737143579634,7.17735752,217.01,216.92,7.17735752]
[1737143579834,7.17735752,216.99,216.92,7.17735752]
[1737143580137,4.6058,216.97,216.92,7.17735752]
[1737143580333,7.17735752,216.99,216.92,7.17735752]
[1737143581236,4.6057,216.97,216.92,11.78405752]
[1737143582334,4.6057,216.97,216.92,7.17735752]
[1737143582734,4.6052,216.99,216.94,7.17735752]
[1737143583038,7.17735752,217.02,216.96,7.17735752]
[1737143583636,4.6048,217.01,216.96,7.17735752]
[1737143584638,7.17735752,217.05,216.98,11.78275752]
[1737143584941,7.17735752,217.05,216.98,7.17735752]
[1737143585739,4.6044,217.04,216.99,4.6051]
[1737143587438,4.6044,217.03,216.99,4.6051]
[1737143587845,7.17735752,217.05,216.99,4.6051]
[1737143588139,4.6042,217.04,217.0,7.17735752]
[1737143588446,7.17735752,217.08,217.02,7.17735752]
[1737143589045,4.6032,217.09,217.04,7.17735752]
[1737143590149,4.6032,217.09,217.05,4.6039]
[1737143590347,4.6035,217.08,217.04,7.17735752]
[1737143590547,8.71375752,217.11,217.02,7.17735752]
[1737143591047,8.71375752,217.11,217.04,4.6042]
[1737143592154,8.71375752,217.11,217.04,11.78155752]
[1737143592452,4.6037,217.08,217.04,4.6042]
[1737143592644,7.17735752,217.07,217.0,7.17735752]
[1737143593852,4.6047,217.03,217.0,7.17735752]
[1737143594655,4.6047,217.03,216.99,4.6053]
[1737143596256,4.6047,217.03,216.98,11.78285752]
[1737143596456,7.17735752,217.05,216.98,11.78285752]
[1737143596754,4.6047,217.02,216.98,11.78285752]
[1737143596956,4.6047,217.02,216.98,7.17735752]
[1737143597458,7.17735752,217.05,216.98,7.17735752]
[1737143598155,4.6051,217.01,216.98,7.17735752]
[1737143598456,7.17735752,217.05,216.98,7.17735752]
[1737143599157,7.17735752,217.03,216.96,11.78335752]
[1737143599360,4.6049,217.01,216.96,11.78335752]
[1737143599749,7.17735752,217.03,216.96,7.17735752]
[1737143599955,4.6046,217.01,216.96,7.17735752]
[1737143600153,7.17735752,217.05,216.98,7.17735752]
[1737143600457,7.17735752,217.07,217.0,7.17735752]
[1737143601051,7.17735752,217.07,217.0,11.78235752]
[1737143601052,4.6043,217.04,217.0,11.78235752]
[1737143601461,7.17735752,217.07,217.0,11.78235752]
[1737143602054,4.6045,217.03,216.99,11.78255752]
[1737143602867,4.6046,217.02,216.99,11.78255752]
[1737143603060,4.6046,217.02,216.99,7.17735752]
[1737143603262,7.17735752,217.05,216.97,11.78285752]
[1737143603865,7.17735752,217.05,216.97,7.17735752]
[1737143604167,7.17735752,217.03,216.97,7.17735752]
[1737143604766,4.6049,217.01,216.97,11.78295752]
[1737143605062,7.17735752,217.03,216.97,7.17735752]
[1737143605762,4.6048,217.01,216.97,7.17735752]
[1737143606960,4.6048,217.01,216.97,11.78275752]
[1737143607160,4.6048,217.01,216.96,7.17735752]
[1737143608061,4.6048,217.01,216.96,11.78295752]
[1737143608268,4.6048,217.01,216.98,7.17735752]
[1737143616879,4.6048,217.01,216.96,7.17735752]
[1737143617074,4.6048,217.01,216.96,11.78285752]
[1737143617772,7.17735752,217.04,216.96,7.17735752]
[1737143618074,4.6045,217.02,216.97,4.6053]
[1737143618269,4.6045,217.02,216.98,7.17735752]
[1737143622678,4.6045,217.02,216.98,11.78255752]
[1737143623779,4.6045,217.02,216.98,4.6052]
[1737143627480,4.6046,217.01,216.98,4.6052]
[1737143632781,7.17735752,217.08,217.0,4.6047]
[1737143633172,7.17735752,217.08,216.99,7.17735752]
[1737143633382,4.6041,217.04,217.01,4.6045]
[1737143635581,4.6042,217.03,217.01,4.6045]
[1737143636283,4.604,217.04,217.01,4.6045]
[1737143636481,7.17735752,217.1,217.04,4.6039]
[1737143636674,7.17735752,217.1,217.03,7.17735752]
[1737143637682,4.6037,217.06,217.03,11.78145752]
[1737143639488,4.6033,217.08,217.04,4.6039]
[1737143640492,4.6034,217.07,217.04,4.6039]
[1737143641186,7.17735752,217.1,217.03,7.17735752]
[1737143641393,4.6036,217.06,217.03,11.78145752]
[1737143641689,4.6036,217.06,217.03,4.6041]
[1737143641892,7.17735752,217.08,217.01,7.17735752]
[1737143642088,7.17735752,217.08,217.02,4.6043]
[1737143642282,7.17735752,217.08,217.01,7.17735752]
[1737143643294,4.6038,217.05,217.01,11.78175752]
[1737143643796,4.6038,217.05,217.03,7.17735752]
[1737143645299,4.6032,217.08,217.03,7.17735752]
[1737143645595,1.5973,217.12,217.06,7.17735752]
[1737143645791,7.17735752,217.11,217.05,4.6035]
[1737143645987,7.17735752,217.11,217.05,11.78085752]
[1737143646192,4.6031,217.09,217.05,11.78085752]
[1737143646693,4.6032,217.08,217.05,4.6035]
[1737143648397,4.6029,217.09,217.05,11.78085752]
[1737143649096,4.6031,217.08,217.05,11.78085752]
[1737143649891,4.6031,217.08,217.05,4.6035]
[1737143650598,13.9599,217.23,217.08,4.603]
[1737143650793,7.17735752,217.16,217.09,7.17735752]
[1737143650992,4.6025,217.12,217.09,7.17735752]
[1737143651389,1.5053,217.2,217.11,7.17735752]
[1737143651390,7.17735752,217.19,217.11,7.17735752]
[1737143651700,4.6015,217.16,217.13,11.77925752]
[1737143652594,7.33574317,217.24,217.14,4.76]
[1737143652802,7.33574317,217.24,217.21,7.17735752]
[1737143653194,7.17735752,217.29,217.21,7.17735752]
[1737143653195,4.5992,217.27,217.21,7.17735752]
[1737143653395,7.17735752,217.27,217.21,7.17735752]
[1737143654199,4.5997,217.24,217.21,7.17735752]
[1737143654890,4.5997,217.24,217.19,11.77795752]
[1737143657898,4.5997,217.24,217.21,7.17735752]
[1737143660302,4.5999,217.23,217.21,7.17735752]
[1737143661702,4.5999,217.23,217.19,11.77795752]
[1737143662302,4.5999,217.23,217.19,7.17735752]
[1737143662800,7.17735752,217.25,217.19,7.17735752]
[1737143663506,4.6006,217.2,217.19,7.17735752]
[1737143663700,7.17735752,217.26,217.19,7.17735752]
[1737143664102,7.17735752,217.24,217.17,7.17735752]
[1737143664694,4.6007,217.2,217.17,7.17735752]
[1737143667109,4.6007,217.2,217.19,7.17735752]
[1737143667809,4.6004,217.21,217.19,7.17735752]
[1737143668604,7.17735752,217.26,217.19,7.17735752]
[1737143668808,4.6006,217.2,217.17,7.17735752]
[1737143674015,4.6001,217.22,217.17,11.77855752]
[1737143674215,7.17735752,217.24,217.17,11.77855752]
[1737143674917,4.6005,217.21,217.17,11.77855752]
[1737143676420,7.17735752,217.28,217.19,7.17735752]
[1737143676721,4.5999,217.24,217.21,7.17735752]
[1737143676914,7.17735752,217.28,217.21,7.17735752]
[1737143677513,4.6001,217.23,217.21,7.17735752]
[1737143678715,4.6001,217.22,217.19,11.77805752]
[1737143679917,4.6004,217.21,217.19,7.17735752]
[1737143680119,4.6004,217.21,217.18,4.6009]
[1737143682117,4.6004,217.21,217.19,7.17735752]
[1737143685920,7.17735752,217.25,217.17,7.17735752]
[1737143686116,3.1019,217.33,217.15,4.6768]
[1737143686117,7.17735752,217.23,217.15,7.17735752]
[1737143686317,4.6014,217.16,217.13,4.602]
[1737143686627,4.6014,217.16,217.14,7.17735752]
[1737143687828,4.6012,217.18,217.14,7.17735752]
[1737143688126,7.17735752,217.21,217.14,7.17735752]
[1737143688521,4.6016,217.15,217.11,86.26178339]
[1737143688722,4.6016,217.15,217.13,7.17735752]
[1737143690824,4.6019,217.14,217.11,7.17735752]
[1737143692418,4.602,217.13,217.11,7.17735752]
[1737143692623,7.17735752,217.18,217.11,7.17735752]
[1737143692918,4.6014,217.16,217.11,7.17735752]
[1737143693118,7.17735752,217.18,217.11,7.17735752]
[1737143693523,4.602,217.14,217.11,7.17735752]
[1737143695325,7.17735752,217.18,217.11,7.17735752]
[1737143695527,4.602,217.13,217.11,7.17735752]
[1737143696330,7.17735752,217.18,217.11,7.17735752]
[1737143697232,4.602,217.14,217.11,7.17735752]
[1737143698326,4.6021,217.13,217.11,7.17735752]
[1737143702138,7.17735752,217.2,217.11,11.77975752]
[1737143702436,7.17735752,217.2,217.13,7.17735752]
[1737143703035,4.6018,217.15,217.13,7.17735752]
[1737143706939,4.6018,217.15,217.12,7.17735752]
[1737143707241,4.602,217.13,217.1,7.17735752]
[1737143709043,7.17735752,217.15,217.05,6.1815]
[1737143709235,7.17735752,217.15,217.08,7.17735752]
[1737143709642,7.17735752,217.17,217.1,7.17735752]
[1737143710242,7.17735752,217.17,217.11,7.17735752]
[1737143711245,4.6018,217.14,217.11,7.17735752]
[1737143711744,4.6018,217.14,217.11,11.77965752]
[1737143712940,4.6018,217.14,217.11,4.6023]
[1737143713147,4.6025,217.11,217.08,4.6031]
[1737143713345,4.6025,217.11,217.07,7.17735752]
[1737143713546,7.17735752,217.15,217.07,7.17735752]
[1737143713738,1.5003,217.25,217.11,7.17735752]
[1737143713942,7.17735752,217.19,217.11,7.17735752]
[1737143714646,4.6016,217.16,217.12,4.6022]
[1737143715845,4.6017,217.15,217.12,4.6022]
[1737143718042,4.6017,217.15,217.11,11.77975752]
[1737143720849,4.6017,217.15,217.13,7.17735752]
[1737143725653,4.6017,217.15,217.12,7.17735752]
[1737143725851,4.6017,217.15,217.11,11.77975752]
[1737143726454,4.602,217.14,217.11,7.17735752]
[1737143726659,386.51618219,217.63,217.18,13.82]
[1737143726851,311.94783048,217.48,217.39,7.17735752]
[1737143727054,311.94783048,217.48,217.47,7.17735752]
[1737143727359,4.7231,217.69,217.4,5.34]
[1737143727558,4.7231,217.69,217.53,7.17735752]
[1737143727747,4.5922,217.6,217.53,7.17735752]
[1737143727949,4.5922,217.6,217.54,46.53893316]
[1737143728159,7.17735752,217.59,217.55,3.77552919]
[1737143728356,6.1867,217.58,217.54,46.53893316]
[1737143728549,1.5941,217.58,217.56,42.37465818]
[1737143728855,1.5941,217.58,217.56,46.53893316]
[1737143729057,7.17735752,217.63,217.57,46.53893316]
[1737143729258,3.129,217.69,217.57,46.53893316]
[1737143729458,7.17735752,217.67,217.58,7.17735752]
[1737143729656,4.5909,217.66,217.6,7.17735752]
[1737143729859,7.17735752,217.65,217.57,80.4386597]
[1737143730058,7.17735752,217.63,217.61,46.53893316]
[1737143730250,7.17735752,217.63,217.58,46.53893316]
[1737143730450,5.32,217.73,217.58,46.53893316]
[1737143730758,7.17735752,217.63,217.62,34.79223316]
[1737143731056,7.17735752,217.65,217.59,44.15566724]
[1737143731358,7.17735752,217.65,217.62,102.58768207]
[1737143731558,7.17735752,217.64,217.62,102.58768207]
[1737143731958,11.76865752,217.64,217.63,19.16119735]
[1737143732260,7.17735752,217.65,217.63,12.00919735]
[1737143732459,7.17735752,217.64,217.63,12.00919735]
[1737143732653,5.32,217.73,217.63,4.96599735]
[1737143732851,7.17735752,217.65,217.63,9.735e-05]
[1737143733056,11.76835752,217.65,217.64,9.735e-05]
[1737143733259,7.17735752,217.65,217.64,9.735e-05]
[1737143733858,11.76835752,217.65,217.64,9.735e-05]
[1737143734058,4.591,217.65,217.64,75.86047399]
[1737143734260,7.17735752,217.67,217.64,75.86047399]
[1737143734657,7.17735752,217.67,217.65,2.33170364]
[1737143734965,4.5906,217.67,217.65,2.33170364]
[1737143735461,11.76795752,217.67,217.66,3.64e-06]
[1737143735962,7.17735752,217.67,217.66,3.64e-06]
[1737143736760,11.76795752,217.67,217.65,8.547e-05]
[1737143736956,7.17735752,217.67,217.64,54.38198108]
[1737143737157,7.17735752,217.65,217.64,47.05998108]
[1737143737461,11.76835752,217.65,217.64,28.49033557]
[1737143737960,7.17735752,217.65,217.5,12.49735752]
[1737143738162,7.17735752,217.57,217.5,12.49735752]
[1737143738558,7.17735752,217.57,217.5,5.32]
[1737143739263,7.17735752,217.57,217.5,12.49735752]
[1737143739464,11.1485805,217.61,217.5,5.32]
[1737143740061,4.5923,217.59,217.52,4.5938]
[1737143740257,11.1485805,217.61,217.52,4.5938]
[1737143740559,11.1485805,217.69,217.47,3.81288413]
[1737143740560,11.1485805,217.58,217.47,3.81288413]
[1737143740762,4.593,217.56,217.49,4.5944]
[1737143740958,4.593,217.56,217.44,5.28]
[1737143741258,11.1485805,217.58,217.44,5.28]
[1737143741460,4.5927,217.57,217.44,5.28]